fUST/lending_fUST_20241018
["ID","MTS","AMOUNT","RATE_DAILY","PERIOD"]
[340405148,1729213843586,-2987.506605,0.00013876,2]
[340405149,1729213843596,-2987.506605,0.00013876,2]
[340405150,1729213843606,-2987.506605,0.00013876,2]
[340405151,1729213843615,-151.0,0.00013876,2]
[340405152,1729213843625,-151.0,0.00013876,2]
[340405153,1729213843634,-151.0,0.00013876,2]
[340405154,1729213843644,-151.0,0.00013876,2]
[340405155,1729213843653,-151.0,0.00013876,2]
[340405156,1729213843662,-151.0,0.00013876,2]
[340405157,1729213843672,-338.356818,0.00013876,2]
[340405158,1729213843681,-338.356818,0.00013876,2]
[340405159,1729213843691,-338.356818,0.00013876,2]
[340405160,1729213843701,-338.356818,0.00013876,2]
[340405161,1729213843710,-338.356818,0.00013876,2]
[340405162,1729213843720,-338.356818,0.00013876,2]
[340405163,1729213843730,-338.356818,0.00013876,2]
[340405164,1729213843739,-338.356818,0.00013876,2]
[340405165,1729213843749,-338.356818,0.00013876,2]
[340405166,1729213843760,-338.356818,0.00013876,2]
[340405167,1729213843769,-338.356818,0.00013876,2]
[340405169,1729213843780,-338.356818,0.00013876,2]
[340405170,1729213843789,-151.0,0.00013876,2]
[340405172,1729213843799,-151.0,0.00013876,2]
[340405174,1729213843809,-151.0,0.00013876,2]
[340405176,1729213843819,-151.0,0.00013876,2]
[340405177,1729213843829,-225.436495,0.00013876,2]
[340405178,1729213843842,-1078.729208,0.00013876,2]
[340405179,1729213843852,-1078.729208,0.00013876,2]
[340405180,1729213843861,-1078.729208,0.00013876,2]
[340405182,1729213843871,-1078.729208,0.00013876,2]
[340405183,1729213843882,-1078.729208,0.00013876,2]
[340405184,1729213843892,-1078.729208,0.00013876,2]
[340405185,1729213843902,-1078.729208,0.00013876,2]
[340405186,1729213843911,-1078.729208,0.00013876,2]
[340405187,1729213843922,-1130.760641,0.00013876,2]
[340405188,1729213843932,-1130.760641,0.00013876,2]
[340405189,1729213843942,-1130.760641,0.00013876,2]
[340405190,1729213843951,-1130.76065,0.00013876,2]
[340405191,1729213843961,-287.750536,0.00013876,2]
[340405192,1729213843970,-287.750536,0.00013876,2]
[340405193,1729213843980,-287.750536,0.00013876,2]
[340405194,1729213843989,-287.75053,0.00013876,2]
[340405195,1729213843998,-256.028451,0.00013876,2]
[340405196,1729213844008,-256.028451,0.00013876,2]
[340405197,1729213844018,-36098.62646566,0.00013877,2]
[340405198,1729213844028,-153.879976,0.00013877,2]
[340405199,1729213844038,-2056.288789,0.00013877,2]
[340405200,1729213844048,-2056.288789,0.00013877,2]
[340405201,1729213844058,-151.0,0.00013877,2]
[340405202,1729213844067,-1642.864077,0.00013877,2]
[340405203,1729213844077,-151.0,0.00013877,2]
[340405204,1729213844087,-1642.864077,0.00013877,2]
[340405205,1729213844321,-151.0,0.00013877,2]
[340405206,1729213844335,-151.0,0.00013877,2]
[340405207,1729213844347,-535.680822,0.00013877,2]
[340405208,1729213844357,-535.680822,0.00013877,2]
[340405209,1729213844367,-151.0,0.00013877,2]
[340405210,1729213844376,-151.0,0.00013877,2]
[340405211,1729213844387,-222.211131,0.00013877,2]
[340405212,1729213844396,-254.760873,0.00013877,2]
[340405213,1729213844406,-151.0,0.00013877,2]
[340405214,1729213844415,-254.760873,0.00013877,2]
[340405215,1729213844425,-151.0,0.00013877,2]
[340405216,1729213844435,-1226.897953,0.00013877,2]
[340405217,1729213844444,-1226.897953,0.00013877,2]
[340405218,1729213844454,-151.0,0.00013877,2]
[340405219,1729213844464,-160.397402,0.00013877,2]
[340405220,1729213844474,-160.397402,0.00013877,2]
[340405221,1729213844483,-2124.23912,0.00013877,2]
[340405222,1729213844493,-635.13420335,0.00013877,2]
[340405223,1729213845143,-256.028451,0.00013867,2]
[340405224,1729213845155,-256.028451,0.00013875,2]
[340405225,1729213845166,-256.028451,0.00013876,2]
[340405226,1729213845176,-256.028451,0.00013876,2]
[340405227,1729213845186,-256.028451,0.00013876,2]
[340405228,1729213845197,-256.028451,0.00013876,2]
[340405229,1729213845208,-1489.10491665,0.00013877,2]
[340405230,1729213845219,-271.571656,0.00013877,2]
[340405231,1729213845230,-271.571656,0.00013877,2]
[340405232,1729213845240,-271.571656,0.00013877,2]
[340405233,1729213845251,-271.571656,0.00013877,2]
[340405234,1729213845261,-163.104447,0.00013877,2]
[340405235,1729213845272,-2983.297735,0.00013877,2]
[340405236,1729213845284,-163.104447,0.00013877,2]
[340405237,1729213845295,-2983.297735,0.00013877,2]
[340405238,1729213845305,-163.104447,0.00013877,2]
[340405239,1729213845315,-163.104447,0.00013877,2]
[340405240,1729213845330,-151.0,0.00013877,2]
[340405241,1729213845340,-151.0,0.00013877,2]
[340405242,1729213845351,-151.0,0.00013877,2]
[340405243,1729213845361,-151.0,0.00013877,2]
[340405244,1729213845372,-2118.060341,0.00013877,2]
[340405245,1729213845382,-2118.060341,0.00013877,2]
[340405246,1729213845392,-2118.060341,0.00013877,2]
[340405247,1729213845402,-2118.060341,0.00013877,2]
[340405248,1729213845412,-549.726145,0.00013877,2]
[340405249,1729213845422,-549.726145,0.00013877,2]
[340405250,1729213845432,-219.285898,0.00013877,2]
[340405251,1729213845442,-549.726145,0.00013877,2]
[340405252,1729213845452,-549.726145,0.00013877,2]
[340405253,1729213845463,-286.978469,0.00013877,2]
[340405254,1729213845472,-286.978469,0.00013877,2]
[340405255,1729213845482,-1893.12664787,0.00013877,2]
[340405267,1729213846675,-256.028451,0.00013875,2]
[340405268,1729213846686,-256.028451,0.00013876,2]
[340405269,1729213846695,-256.028451,0.00013876,2]
[340405270,1729213846706,-256.028451,0.00013876,2]
[340405271,1729213846715,-256.028451,0.00013876,2]
[340405272,1729213846726,-256.028451,0.00013876,2]
[340405273,1729213846736,-256.028451,0.00013876,2]
[340405274,1729213846746,-5835.16321148,0.00013877,2]
[340405275,1729213897798,133.12470944,0.00012968,2]
[340405278,1729214336970,159.0,0.0001955,120]
[340405279,1729214341938,159.0,0.0001867,120]
[340405306,1729214958144,-3000.0,0.00012368,2]
[340405307,1729214958172,-3241.0124454,0.00012464,2]
[340405308,1729214958202,-171.126702,0.00012559,2]
[340405309,1729214958230,-1000.0,0.00012748,2]
[340405310,1729214958259,-108.1475146,0.00012777,2]
[340405376,1729215038299,-204.2339149,0.00012435,2]
[340405377,1729215038310,-62.9791874,0.00012777,2]
[340405378,1729215038321,-317.02183168,0.0001296,2]
[340405379,1729215038337,-682.97816832,0.0001296,2]
[340405380,1729215038347,-171.126702,0.00012995,2]
[340405381,1729215038357,-25.14057882,0.00013,2]
[340405398,1729215040131,-127.85942118,0.00013,2]
[340405399,1729215040140,-153.0,0.00013,2]
[340405400,1729215040152,-153.0,0.000132,2]
[340405401,1729215040161,-153.0,0.000132,2]
[340405402,1729215040171,-171.126702,0.00013214,2]
[340405403,1729215040181,-300.0,0.00013399,2]
[340405404,1729215040190,-153.0,0.000134,2]
[340405405,1729215040199,-153.0,0.000134,2]
[340405406,1729215040209,-153.0,0.000134,2]
[340405407,1729215040219,-153.0,0.000134,2]
[340405408,1729215040228,-153.0,0.000134,2]
[340405409,1729215040238,-679.1925799,0.000134,2]
[340405410,1729215040248,-306.0,0.000134,2]
[340405411,1729215040257,-153.0,0.000134,2]
[340405412,1729215040266,-153.0,0.000134,2]
[340405413,1729215040275,-153.0,0.000134,2]
[340405414,1729215040285,-153.0,0.000134,2]
[340405415,1729215040294,-153.7550872,0.000134,2]
[340405416,1729215040304,-155.2591748,0.000134,2]
[340405417,1729215040316,-153.0,0.00013452,2]
[340405418,1729215040326,-6882.40716495,0.00013472,2]
[340405419,1729215040336,-153.0,0.00013552,2]
[340405420,1729215040346,-982.99718198,0.00013678,2]
[340405421,1729215040356,-250.0,0.00013699,2]
[340405422,1729215040365,-163.647341,0.00013699,2]
[340405423,1729215040375,-761.264017,0.00013699,2]
[340405424,1729215040384,-303.45587517,0.00013736,2]
[340405425,1729215040393,-1000.0,0.00013767,2]
[340405426,1729215040403,-500.0,0.00013773,2]
[340405427,1729215040413,-500.0,0.00013773,2]
[340405428,1729215040423,-500.0,0.00013773,2]
[340405429,1729215040435,-500.0,0.00013773,2]
[340405430,1729215040444,-200.69148877,0.00013773,2]
[340405431,1729215040455,-500.0,0.00013773,2]
[340405432,1729215040465,-500.0,0.00013773,2]
[340405433,1729215040476,-167.46,0.00013773,2]
[340405434,1729215040485,-160.44947378,0.00013773,2]
[340405435,1729215040496,-500.0,0.00013773,2]
[340405436,1729215040506,-500.0,0.00013773,2]
[340405437,1729215040516,-395.09677809,0.00013773,2]
[340405438,1729215040525,-500.0,0.00013773,2]
[340405439,1729215040535,-500.0,0.00013773,2]
[340405440,1729215040545,-500.0,0.00013773,2]
[340405441,1729215040557,-432.57430692,0.00013773,2]
[340405442,1729215040567,-428.85527192,0.00013773,2]
[340405443,1729215040576,-500.0,0.00013773,2]
[340405444,1729215040586,-304.96434827,0.00013773,2]
[340405445,1729215040598,-500.0,0.00013773,2]
[340405446,1729215040608,-500.0,0.00013773,2]
[340405447,1729215040620,-500.0,0.00013773,2]
[340405448,1729215040632,-600.3230388,0.00013773,2]
[340405449,1729215040642,-500.0,0.00013773,2]
[340405450,1729215040652,-502.91641481,0.00013773,2]
[340405451,1729215040661,-500.0,0.00013773,2]
[340405452,1729215040672,-733.97198814,0.00013773,2]
[340405453,1729215040682,-150.0,0.00013778,2]
[340405454,1729215040691,-835.57886238,0.00013784,2]
[340405455,1729215040701,-1009.08010194,0.00013788,2]
[340405456,1729215040711,-17834.5742056,0.00013789,2]
[340405457,1729215040722,-75361.8091143,0.00013789,2]
[340405458,1729215040732,-500.0,0.00013798,2]
[340405459,1729215040740,-161.98219959,0.00013798,2]
[340405460,1729215040750,-500.0,0.00013798,2]
[340405461,1729215040760,-500.0,0.00013798,2]
[340405462,1729215040770,-500.0,0.00013798,2]
[340405463,1729215040779,-500.0,0.00013798,2]
[340405464,1729215040789,-500.0,0.00013798,2]
[340405465,1729215040798,-500.0,0.00013798,2]
[340405466,1729215040807,-500.0,0.00013798,2]
[340405467,1729215040817,-497.35894547,0.00013798,2]
[340405468,1729215040826,-500.0,0.00013798,2]
[340405469,1729215040836,-500.0,0.00013798,2]
[340405470,1729215040845,-500.0,0.00013798,2]
[340405471,1729215040857,-500.0,0.00013798,2]
[340405472,1729215040867,-54504.02683493,0.00013799,2]
[340405473,1729215040892,-10054.9698288,0.00013799,2]
[340405474,1729215040901,-137450.87423025,0.00013799,2]
[340405475,1729215040911,-151.0,0.00013799,2]
[340405476,1729215040921,-151.0,0.00013799,2]
[340405477,1729215040931,-151.0,0.00013799,2]
[340405478,1729215040940,-1695.99981,0.00013799,2]
[340405479,1729215040950,-1695.99981,0.00013799,2]
[340405480,1729215040959,-469.21726812,0.000138,2]
[340405481,1729215040968,-1121.805284,0.000138,2]
[340405482,1729215040979,-1000.0,0.000138,2]
[340405483,1729215040988,-243.75048427,0.000138,2]
[340405484,1729215040998,-1000.0,0.000138,2]
[340405485,1729215041010,-1000.0,0.000138,2]
[340405486,1729215041019,-1000.0,0.000138,2]
[340405487,1729215041029,-253.66636922,0.000138,2]
[340405488,1729215041039,-1000.0,0.000138,2]
[340405489,1729215041049,-915.75638283,0.000138,2]
[340405490,1729215041060,-635.70517618,0.000138,2]
[340405491,1729215041069,-504.83292054,0.000138,2]
[340405492,1729215041078,-573.43272784,0.000138,2]
[340405493,1729215041088,-1000.0,0.000138,2]
[340405494,1729215041100,-501.3102566,0.000138,2]
[340405495,1729215041109,-1000.0,0.000138,2]
[340405496,1729215041119,-5944.85806852,0.00013812,2]
[340405497,1729215041130,-25120.6030381,0.00013812,2]
[340405498,1729215041140,-4821.51389411,0.00013822,2]
[340405499,1729215041150,-151.0,0.0001384,2]
[340405500,1729215041160,-151.0,0.0001384,2]
[340405501,1729215041169,-151.0,0.0001384,2]
[340405502,1729215041179,-1695.99981,0.0001384,2]
[340405503,1729215041188,-1695.99981,0.0001384,2]
[340405504,1729215041199,-1500.0,0.0001384,2]
[340405505,1729215041208,-320.6924536,0.0001384,2]
[340405506,1729215041218,-1256.92848716,0.0001384,2]
[340405507,1729215041227,-1500.0,0.0001384,2]
[340405508,1729215041237,-1500.0,0.0001384,2]
[340405509,1729215041248,-500.97860611,0.0001384,2]
[340405510,1729215041258,-1500.0,0.0001384,2]
[340405511,1729215041268,-15517.10015744,0.00013854,2]
[340405512,1729215041278,-5944.85806852,0.00013855,2]
[340405513,1729215041288,-25120.6030381,0.00013855,2]
[340405514,1729215041298,-151.0,0.00013856,2]
[340405515,1729215041308,-151.0,0.00013856,2]
[340405516,1729215041318,-151.0,0.00013856,2]
[340405517,1729215041328,-151.0,0.00013856,2]
[340405518,1729215041337,-204.326387,0.00013856,2]
[340405519,1729215041349,-1695.99981,0.00013856,2]
[340405520,1729215041358,-1695.99981,0.00013856,2]
[340405521,1729215041368,-1695.99981,0.00013856,2]
[340405522,1729215041378,-1695.99981,0.00013856,2]
[340405523,1729215041388,-11889.716137,0.00013856,2]
[340405524,1729215041398,-50241.2060762,0.00013856,2]
[340405525,1729215041408,-525.56510943,0.00013856,2]
[340405526,1729215041418,-500.0,0.00013856,2]
[340405527,1729215041428,-410.54848887,0.00013856,2]
[340405528,1729215041438,-500.0,0.00013856,2]
[340405529,1729215041447,-500.0,0.00013856,2]
[340405530,1729215041457,-584.54583224,0.00013856,2]
[340405531,1729215041467,-500.0,0.00013856,2]
[340405532,1729215041478,-217.80245836,0.00013856,2]
[340405533,1729215041487,-151.0,0.00013857,2]
[340405534,1729215041498,-151.0,0.00013857,2]
[340405535,1729215041508,-1695.99981,0.00013857,2]
[340405536,1729215041518,-1695.99981,0.00013857,2]
[340405537,1729215041528,-17834.5742056,0.00013857,2]
[340405538,1729215041537,-75361.8091143,0.00013857,2]
[340405539,1729215041547,-151.0,0.00013865,2]
[340405540,1729215041559,-151.0,0.00013865,2]
[340405541,1729215041569,-151.0,0.00013865,2]
[340405542,1729215041578,-637.8,0.00013865,2]
[340405543,1729215041588,-17834.5742056,0.00013865,2]
[340405544,1729215041600,-151.0,0.00013866,2]
[340405545,1729215041609,-151.0,0.00013866,2]
[340405546,1729215041618,-36098.62646566,0.00013866,2]
[340405547,1729215041629,-151.0,0.00013866,2]
[340405548,1729215041639,-277.653405,0.00013866,2]
[340405549,1729215041649,-151.0,0.00013866,2]
[340405550,1729215041659,-277.560049,0.00013866,2]
[340405551,1729215041669,-254.760873,0.00013866,2]
[340405552,1729215041678,-254.760873,0.00013866,2]
[340405553,1729215041688,-151.0,0.00013866,2]
[340405554,1729215041697,-384.808301,0.00013866,2]
[340405555,1729215041707,-151.0,0.00013866,2]
[340405556,1729215041716,-384.808301,0.00013866,2]
[340405557,1729215041726,-151.0,0.00013866,2]
[340405558,1729215041735,-151.0,0.00013866,2]
[340405559,1729215041745,-153.525139,0.00013866,2]
[340405560,1729215041755,-236.849772,0.00013866,2]
[340405561,1729215041765,-229.582776,0.00013866,2]
[340405562,1729215041775,-153.525139,0.00013866,2]
[340405563,1729215041784,-236.849772,0.00013866,2]
[340405564,1729215041794,-10000.0,0.00013866,2]
[340405565,1729215041803,-229.582776,0.00013866,2]
[340405566,1729215041813,-151.0,0.00013866,2]
[340405567,1729215041823,-395.739603,0.00013866,2]
[340405568,1729215041832,-3166.947326,0.00013866,2]
[340405569,1729215041842,-3166.947326,0.00013866,2]
[340405570,1729215041853,-395.739603,0.00013866,2]
[340405571,1729215041862,-543.59527,0.00013866,2]
[340405572,1729215041871,-543.59527,0.00013866,2]
[340405573,1729215041880,-2696.305944,0.00013866,2]
[340405574,1729215041890,-2696.305944,0.00013866,2]
[340405575,1729215041899,-4934.099055,0.00013866,2]
[340405576,1729215041909,-4934.099055,0.00013866,2]
[340405577,1729215041919,-151.0,0.00013866,2]
[340405578,1729215041928,-152.983424,0.00013866,2]
[340405579,1729215041940,-217.257324,0.00013866,2]
[340405580,1729215041951,-217.257324,0.00013866,2]
[340405581,1729215041962,-217.257324,0.00013866,2]
[340405582,1729215041972,-217.257324,0.00013866,2]
[340405583,1729215041981,-151.0,0.00013866,2]
[340405584,1729215041991,-151.0,0.00013866,2]
[340405585,1729215042001,-837.93817,0.00013866,2]
[340405586,1729215042012,-837.93817,0.00013866,2]
[340405587,1729215042021,-151.0,0.00013866,2]
[340405588,1729215042030,-274.784819,0.00013866,2]
[340405589,1729215042039,-151.0,0.00013866,2]
[340405590,1729215042049,-165.64186,0.00013866,2]
[340405591,1729215042059,-151.0,0.00013866,2]
[340405592,1729215042069,-151.0,0.00013866,2]
[340405593,1729215042078,-1695.99981,0.00013866,2]
[340405594,1729215042087,-1695.99981,0.00013866,2]
[340405595,1729215042097,-1695.99981,0.00013866,2]
[340405596,1729215042106,-1695.99981,0.00013866,2]
[340405597,1729215042115,-9041.58480726,0.00013867,2]
[340405598,1729215042124,-28128.05409066,0.00013867,2]
[340405599,1729215042134,-17834.5742056,0.00013867,2]
[340405600,1729215042143,-151.0,0.00013867,2]
[340405601,1729215042153,-151.0,0.00013867,2]
[340405602,1729215042163,-254.760873,0.00013867,2]
[340405603,1729215042172,-254.760873,0.00013867,2]
[340405604,1729215042181,-151.0,0.00013867,2]
[340405605,1729215042191,-384.808301,0.00013867,2]
[340405606,1729215042200,-151.0,0.00013867,2]
[340405607,1729215042210,-384.808301,0.00013867,2]
[340405608,1729215042219,-151.0,0.00013867,2]
[340405609,1729215042229,-153.525139,0.00013867,2]
[340405610,1729215042238,-236.849772,0.00013867,2]
[340405611,1729215042247,-229.582776,0.00013867,2]
[340405612,1729215042257,-10000.0,0.00013867,2]
[340405613,1729215042266,-153.525139,0.00013867,2]
[340405614,1729215042276,-236.849772,0.00013867,2]
[340405615,1729215042285,-10000.0,0.00013867,2]
[340405616,1729215042295,-229.582776,0.00013867,2]
[340405617,1729215042304,-271.533664,0.00013867,2]
[340405618,1729215042313,-395.739603,0.00013867,2]
[340405619,1729215042323,-3166.947326,0.00013867,2]
[340405620,1729215042332,-153.879976,0.00013867,2]
[340405621,1729215042342,-3166.947326,0.00013867,2]
[340405622,1729215042354,-395.739603,0.00013867,2]
[340405623,1729215042363,-543.59527,0.00013867,2]
[340405624,1729215042372,-543.59527,0.00013867,2]
[340405625,1729215042382,-2696.305944,0.00013867,2]
[340405626,1729215042391,-2696.305944,0.00013867,2]
[340405627,1729215042400,-4934.099055,0.00013867,2]
[340405628,1729215042410,-151.0,0.00013867,2]
[340405629,1729215042419,-151.0,0.00013867,2]
[340405630,1729215042428,-4934.099055,0.00013867,2]
[340405631,1729215042438,-222.211131,0.00013867,2]
[340405632,1729215042447,-2692.517962,0.00013867,2]
[340405633,1729215042457,-2692.517962,0.00013867,2]
[340405634,1729215042466,-2692.517962,0.00013867,2]
[340405635,1729215042476,-2692.517962,0.00013867,2]
[340405636,1729215042485,-182.767781,0.00013867,2]
[340405637,1729215042494,-182.767781,0.00013867,2]
[340405639,1729215042503,-182.767781,0.00013867,2]
[340405640,1729215042513,-182.767781,0.00013867,2]
[340405641,1729215042522,-1642.864077,0.00013867,2]
[340405642,1729215042531,-1642.864077,0.00013867,2]
[340405643,1729215042541,-1642.864077,0.00013867,2]
[340405644,1729215042551,-1642.864077,0.00013867,2]
[340405645,1729215042563,-170.522113,0.00013867,2]
[340405646,1729215042572,-151.0,0.00013867,2]
[340405647,1729215042582,-170.522113,0.00013867,2]
[340405648,1729215042593,-151.0,0.00013867,2]
[340405649,1729215042604,-1226.897953,0.00013867,2]
[340405650,1729215042614,-1226.897953,0.00013867,2]
[340405651,1729215042624,-1226.897953,0.00013867,2]
[340405653,1729215042634,-1226.897953,0.00013867,2]
[340405655,1729215042644,-1130.760641,0.00013867,2]
[340405657,1729215042654,-1130.760641,0.00013867,2]
[340405659,1729215042664,-170.522113,0.00013867,2]
[340405661,1729215042674,-170.522113,0.00013867,2]
[340405663,1729215042683,-1130.760641,0.00013867,2]
[340405665,1729215042693,-1130.760641,0.00013867,2]
[340405667,1729215042703,-151.0,0.00013867,2]
[340405669,1729215042712,-151.0,0.00013867,2]
[340405671,1729215042723,-151.0,0.00013867,2]
[340405673,1729215042732,-437.488859,0.00013867,2]
[340405675,1729215042742,-437.488859,0.00013867,2]
[340405677,1729215042751,-437.488859,0.00013867,2]
[340405679,1729215042762,-437.488859,0.00013867,2]
[340405682,1729215042772,-2049.783874,0.00013867,2]
[340405684,1729215042782,-2049.783874,0.00013867,2]
[340405687,1729215042792,-2049.783874,0.00013867,2]
[340405688,1729215042802,-2049.783874,0.00013867,2]
[340405691,1729215042811,-4517.197696,0.00013867,2]
[340405692,1729215042821,-4517.197696,0.00013867,2]
[340405693,1729215042830,-3151.39761825,0.00013867,2]
[340405694,1729215042845,-1365.80007775,0.00013867,2]
[340405695,1729215042860,-4517.197696,0.00013867,2]
[340405697,1729215042869,-88.94692221,0.00013867,2]
[340405700,1729215042881,-128.31040179,0.00013867,2]
[340405702,1729215042890,-217.257324,0.00013867,2]
[340405704,1729215042899,-217.257324,0.00013867,2]
[340405707,1729215042908,-217.257324,0.00013867,2]
[340405710,1729215042918,-2056.288789,0.00013867,2]
[340405712,1729215042928,-1914.0642845,0.00013867,2]
[340405730,1729215045185,500.0,9.686e-05,2]
[340405740,1729215419557,151.0,0.0001867,120]
[340405741,1729215438319,1700.0,0.00020299,120]
[340405747,1729215696577,400.0,0.0002,90]
[340405762,1729216003167,-500.0,0.00012426,2]
[340405763,1729216003190,-582.5573121,0.00012481,2]
[340405764,1729216003213,-2889.05469976,0.00012758,2]
[340405842,1729216240055,-500.0,0.00010782,2]
[340405843,1729216240064,-185.2366751,0.00012617,2]
[340405845,1729216240074,-584.7373201,0.00012676,2]
[340405847,1729216240084,-6956.98607714,0.00013481,2]
[340405849,1729216240094,-500.0,0.00013522,2]
[340405851,1729216240104,-860.12253425,0.00013677,2]
[340405852,1729216240113,-300.0,0.00013698,2]
[340405853,1729216240123,-166.1574509,0.00013699,2]
[340405854,1729216240133,-5237.5412913,0.00013699,2]
[340405855,1729216240142,-250.0,0.00013699,2]
[340405856,1729216240152,-683.430718,0.00013699,2]
[340405857,1729216240162,-489.31465876,0.00013741,2]
[340405858,1729216240172,-36098.62646566,0.00013741,2]
[340405859,1729216240182,-795.10132469,0.00013777,2]
[340405860,1729216240192,-752.9303763,0.00013777,2]
[340405861,1729216240202,-151.0,0.00013799,2]
[340405862,1729216240211,-5000.0,0.000138,2]
[340405863,1729216240221,-1000.0,0.00013808,2]
[340405864,1729216240230,-1000.0,0.00013808,2]
[340405865,1729216240239,-1000.0,0.00013834,2]
[340405866,1729216240249,-151.0,0.0001384,2]
[340405867,1729216240258,-665.67,0.00013845,2]
[340405868,1729216240268,-505.11987395,0.00013846,2]
[340405869,1729216240277,-151.0,0.00013856,2]
[340405870,1729216240287,-151.0,0.00013856,2]
[340405871,1729216240296,-151.0,0.00013857,2]
[340405872,1729216240600,-8296.47378186,0.00013857,2]
[340405873,1729216240610,-29157.0638047,0.00013857,2]
[340405874,1729216240619,-8296.47378186,0.00013864,2]
[340405875,1729216240629,-29157.0638047,0.00013864,2]
[340405876,1729216240638,-500.0,0.00013864,2]
[340405877,1729216240649,-500.0,0.00013864,2]
[340405878,1729216240658,-500.0,0.00013864,2]
[340405879,1729216240668,-500.0,0.00013864,2]
[340405880,1729216240678,-500.0,0.00013864,2]
[340405881,1729216240687,-500.0,0.00013864,2]
[340405882,1729216240696,-500.0,0.00013864,2]
[340405883,1729216240706,-500.0,0.00013864,2]
[340405884,1729216240715,-173.98038112,0.00013864,2]
[340405885,1729216240725,-166.13836851,0.00013864,2]
[340405886,1729216240735,-324.6916852,0.00013864,2]
[340405887,1729216240744,-500.0,0.00013864,2]
[340405888,1729216240754,-500.0,0.00013864,2]
[340405889,1729216240763,-500.0,0.00013864,2]
[340405890,1729216240773,-500.0,0.00013864,2]
[340405891,1729216240783,-500.0,0.00013864,2]
[340405892,1729216240792,-500.0,0.00013864,2]
[340405893,1729216240800,-500.0,0.00013864,2]
[340405894,1729216240810,-500.0,0.00013864,2]
[340405895,1729216240819,-500.0,0.00013864,2]
[340405896,1729216240828,-638.44432458,0.00013864,2]
[340405897,1729216240837,-500.0,0.00013864,2]
[340405898,1729216240846,-500.0,0.00013864,2]
[340405899,1729216240865,-500.0,0.00013864,2]
[340405900,1729216240876,-500.0,0.00013864,2]
[340405901,1729216240886,-500.0,0.00013864,2]
[340405902,1729216240896,-500.0,0.00013864,2]
[340405903,1729216240906,-500.0,0.00013864,2]
[340405904,1729216240915,-500.0,0.00013864,2]
[340405905,1729216240927,-500.0,0.00013864,2]
[340405906,1729216240938,-58075.316473,0.00013865,2]
[340405907,1729216240949,-204099.446633,0.00013865,2]
[340405908,1729216240959,-151.0,0.00013866,2]
[340405909,1729216240969,-151.0,0.00013866,2]
[340405910,1729216240979,-151.0,0.00013866,2]
[340405911,1729216240988,-151.0,0.00013866,2]
[340405912,1729216240998,-8296.47378186,0.00013867,2]
[340405913,1729216241008,-58075.316473,0.00013867,2]
[340405914,1729216241017,-151.0,0.00013867,2]
[340405915,1729216241027,-228.287624,0.00013867,2]
[340405916,1729216241037,-536.500861,0.00013867,2]
[340405917,1729216241046,-536.500861,0.00013867,2]
[340405918,1729216241056,-536.500861,0.00013867,2]
[340405919,1729216241066,-536.500861,0.00013867,2]
[340405920,1729216241076,-151.0,0.00013867,2]
[340405921,1729216241085,-151.0,0.00013867,2]
[340405922,1729216241094,-151.0,0.00013867,2]
[340405923,1729216241104,-151.0,0.00013867,2]
[340405924,1729216241113,-151.0,0.00013867,2]
[340405925,1729216241123,-151.0,0.00013867,2]
[340405926,1729216241132,-170.626337,0.00013867,2]
[340405927,1729216241141,-170.626337,0.00013867,2]
[340405928,1729216241151,-151.0,0.00013867,2]
[340405929,1729216241160,-152.206725,0.00013867,2]
[340405930,1729216241172,-3168.030776,0.00013867,2]